Workbook

Sheet Основные
A1: Номер, назначение помещения | B1: tp0C, площадь помещения F, м2 | C1: Наименование ораждения | D1: Ориентация | E1: Размеры, м | F1: А, м2 | G1: k,Вт/(м2 0С)_ | H1: (tp-text)n,0C | I1: 1+Sb | J1: Q,Вт | K1: Примечание Q
A2: 001 Тренажерный зал | B2: 18 | C2: нс(1) | D2: с | E2: 2*4,25 | F2: =2*4.25 -> 8.5 | G2: =1/2.1 -> 0.4761904762 | H2: =$B$2+24 -> 42 | I2: 1 | J2: =G2*F2*H2*I2 -> 170 | K2: =MROUND(SUM(J2:J12),10) -> 900
B3: 39.58 | C3: нс(2) | D3: с | E3: 1*4,25 | F3: =1*4.25 -> 4.25 | G3: =1/4.3 -> 0.2325581395 | H3: =$B$2+24 -> 42 | I3: 1 | J3: =G3*F3*H3*I3 -> 41.51162791
C4: нс(3) | D4: з | E4: 2*8,4 | F4: =2*8.4 -> 16.8 | G4: =1/8.6 -> 0.1162790698 | H4: 42 | I4: 1 | J4: 82.04651163
C5: нс(4) | D5: з | E5: 1*8,4 | F5: =1*8.4 -> 8.4 | G5: =1/14.2 -> 0.07042253521 | H5: 42 | I5: 1 | J5: 24.84507042
C6: нс(1) | D6: з | E6: 2*1,6 | F6: =2*1.6 -> 3.2 | G6: =1/2.1 -> 0.4761904762 | H6: 42 | I6: 1 | J6: 64
C7: нс(1) | D7: ю | E7: 2*4,25-(1,3*1,3) | F7: =2*4.25-(1.3*1.3) -> 6.81 | G7: =1/2.1 -> 0.4761904762 | H7: 42 | I7: 1 | J7: 136.2
C8: нс(2) | D8: ю | E8: 1*4,25 | F8: =1*4.25 -> 4.25 | G8: =1/4.3 -> 0.2325581395 | H8: 42 | I8: 1 | J8: 41.51162791
C9: окно | D9: ю | E9: 1,3*1,3 | F9: =1.3*1.3 -> 1.69 | G9: =1/0.6 -> 1.666666667 | H9: 42 | I9: 1 | J9: 118.3
C10: пл(2) | D10: - | E10: 4,25+5,35 | F10: =4.25+5.35 -> 9.6 | G10: =1/4.3 -> 0.2325581395 | H10: 42 | I10: 1 | J10: 93.76744186
C11: пл(3) | D11: - | E11: 7,4+8,5 | F11: 15.9 | G11: =1/8.6 -> 0.1162790698 | H11: 42 | I11: 1 | J11: 77.65116279
C12: пл(4) | D12: - | E12: 17 | F12: 17 | G12: =1/14.2 -> 0.07042253521 | H12: 42 | I12: 1 | J12: 50.28169014
A13: 002 Постирочная | B13: 15 | C13: нс(1) | D13: ю | E13: 2*3,46 | F13: =2*3.46 -> 6.92 | G13: =1/2.1 -> 0.4761904762 | H13: =$B$13+24 -> 39 | I13: 1 | J13: =I13*H13*G13*F13 -> 128.5142857 | K13: =MROUND(SUM(J13:J16),10) -> 200
B14: 3.61 | C14: нс(2) | D14: ю | E14: 1*3,46 | F14: =1*3.46 -> 3.46 | G14: =1/4.3 -> 0.2325581395 | H14: =$B$13+24 -> 39 | I14: 1 | J14: =I14*H14*G14*F14 -> 31.38139535
C15: пл(2) | D15: - | E15: 1*3,46 | F15: =1*3.46 -> 3.46 | G15: =1/4.3 -> 0.2325581395 | H15: 39 | I15: 1 | J15: =I15*H15*G15*F15 -> 31.38139535
C16: пл(3) | D16: - | E16: 0,25*3,46 | F16: =0.25*3.46 -> 0.865 | G16: =1/8.6 -> 0.1162790698 | H16: 39 | I16: 1 | J16: 3.922674419
A17: 003 Душевая | B17: 25 | C17: нс(1) | D17: ю | E17: 2*2,145 | F17: =2.145*2 -> 4.29 | G17: =1/2.1 -> 0.4761904762 | H17: =$B$17+24 -> 49 | I17: 1 | J17: 100.1 | K17: =MROUND(SUM(J17:J22),10) -> 300
B18: 4.28 | C18: нс(2) | D18: ю | E18: 1*2,145 | F18: =2.145*1 -> 2.145 | G18: =1/4.3 -> 0.2325581395 | H18: =$B$17+24 -> 49 | I18: 1 | J18: 24.44302326
C19: нс(1) | D19: в | E19: 2*2,23 | F19: =2*2.23 -> 4.46 | G19: =1/2.1 -> 0.4761904762 | H19: 49 | I19: 1 | J19: 104.0666667
C20: нс(2) | D20: в | E20: 1*2,23 | F20: =1*2.23 -> 2.23 | G20: =1/4.3 -> 0.2325581395 | H20: 49 | I20: 1 | J20: 25.41162791
C21: пл(2) | D21: - | E21: 3.38 | F21: =E21 -> 3.38 | G21: =1/4.3 -> 0.2325581395 | H21: 49 | I21: 1 | J21: 38.51627907
C22: пл(3) | D22: - | E22: 1.41 | F22: =E22 -> 1.41 | G22: =1/8.6 -> 0.1162790698 | H22: 49 | I22: 1 | J22: 8.03372093
A23: 004 Уборная | B23: 18 | C23: нс(1) | D23: в | E23: 2*1,48 | F23: =2*1.48 -> 2.96 | G23: =1/2.1 -> 0.4761904762 | H23: =$B$23+24 -> 42 | I23: 1 | J23: 59.2 | K23: =MROUND(SUM(J23:J26),10) -> 100
B24: 2.34 | C24: нс(2) | D24: в | E24: 1*1,48 | F24: =1*1.48 -> 1.48 | G24: =1/4.3 -> 0.2325581395 | H24: =$B$23+24 -> 42 | I24: 1 | J24: 14.45581395
C25: пл(2) | D25: - | E25: 1.47 | F25: =E25 -> 1.47 | G25: =1/4.3 -> 0.2325581395 | H25: 42 | I25: 1 | J25: 14.35813953
C26: пл(3) | D26: - | E26: 1.69 | F26: =E26 -> 1.69 | G26: =1/8.7 -> 0.1149425287 | H26: 42 | I26: 1 | J26: 8.15862069
A27: 005 Топочная | B27: 16 | C27: нс(1) | D27: в | E27: 2*1,16-(0,57*0,2) | F27: =2*1.16-(0.57*0.2) -> 2.206 | G27: =1/2.1 -> 0.4761904762 | H27: =$B$27+24 -> 40 | I27: 1 | J27: 42.01904762 | K27: =MROUND(SUM(J27:J33),10) -> 290
B28: 4.78 | C28: нс(2) | D28: в | E28: 1*1,16 | F28: =1*1.16 -> 1.16 | G28: =1/4.3 -> 0.2325581395 | H28: =$B$27+24 -> 40 | I28: 1 | J28: 10.79069767
C29: окно | D29: в | E29: 0,57*0,2 | F29: =0.57*0.2 -> 0.114 | G29: =1/0.6 -> 1.666666667 | H29: 40 | I29: 1 | J29: 7.6
C30: нс | D30: в | E30: 3*1,38-(0,91*2,1) | F30: =3*1.38-(0.91*2.1) -> 2.229 | G30: =1/3.2 -> 0.3125 | H30: 40 | I30: 1 | J30: 27.8625
C31: дверь | D31: в | E31: 0,91*2,1 | F31: =0.91*2.1 -> 1.911 | G31: =1/0.46 -> 2.173913043 | H31: 40 | I31: 1 | J31: 166.173913
C32: пл(2) | D32: - | E32: 2.54 | F32: =E32 -> 2.54 | G32: =1/4.3 -> 0.2325581395 | H32: 40 | I32: 1 | J32: 23.62790698
C33: пл(3) | D33: - | E33: 3.1 | F33: =E33 -> 3.1 | G33: =1/8.7 -> 0.1149425287 | H33: 40 | I33: 1 | J33: 14.25287356
A34: 006 Кладовая | B34: 16 | C34: нс(1) | D34: з | E34: 2*3,75 | F34: =2*3.75 -> 7.5 | G34: =1/2.1 -> 0.4761904762 | H34: =$B$34+24 -> 40 | I34: 1 | J34: 142.8571429 | K34: =MROUND(SUM(J34:J40),10) -> 340
B35: 7.74 | C35: нс(2) | D35: з | E35: 1*3,75 | F35: =1*3.75 -> 3.75 | G35: =1/4.3 -> 0.2325581395 | H35: =$B$34+24 -> 40 | I35: 1 | J35: 34.88372093
C36: нс(1) | D36: с | E36: 2*2,19 | F36: =2*2.19 -> 4.38 | G36: =1/2.1 -> 0.4761904762 | H36: 40 | I36: 1 | J36: 83.42857143
C37: нс(2) | D37: с | E37: 1*2,19 | F37: =1*2.19 -> 2.19 | G37: =1/4.3 -> 0.2325581395 | H37: 40 | I37: 1 | J37: 20.37209302
C38: пл(2) | D38: - | E38: 4.5 | F38: =E38 -> 4.5 | G38: =1/4.3 -> 0.2325581395 | H38: 40 | I38: 1 | J38: 41.86046512
C39: пл(3) | D39: - | E39: 2.4 | F39: =E39 -> 2.4 | G39: =1/8.7 -> 0.1149425287 | H39: 40 | I39: 1 | J39: 11.03448276
C40: пл(4) | D40: - | E40: 1.35 | F40: =E40 -> 1.35 | G40: =1/14.2 -> 0.07042253521 | H40: 40 | I40: 1 | J40: 3.802816901
A41: 007 Кладовая | B41: 16 | C41: нс(2) | D41: с | E41: 0,5*3,42 | F41: =0.5*3.42 -> 1.71 | G41: 1.67 | H41: =$B$46+24 -> 40 | I41: 1 | J41: =I41*H41*G41*F41 -> 114.228 | K41: =MROUND(SUM(J41:J45),10) -> 280
B42: 10.47 | C42: нс(3) | D42: с | E42: 2*3,42 | F42: =2*3.42 -> 6.84 | G42: =1/2.7 -> 0.3703703704 | H42: =$B$46+24 -> 40 | I42: 1 | J42: 101.3333333
C43: нс(4) | D43: с | E43: 0,5*3,42 | F43: =0.5*3.42 -> 1.71 | G43: 0.37 | H43: 40 | I43: 1 | J43: 25.308
C44: пл(3) | D44: - | E44: 0.49 | F44: =E44 -> 0.49 | G44: =1/8.7 -> 0.1149425287 | H44: 40 | I44: 1 | J44: 2.252873563
C45: пл(4) | D45: - | E45: 11.87 | F45: =E45 -> 11.87 | G45: =1/14.2 -> 0.07042253521 | H45: 40 | I45: 1 | J45: 33.43661972
A46: 008 Холл | B46: 16 | C46: нс(3) | D46: - | E46: 8.7 | F46: =E46 -> 8.7 | G46: =1/8.7 -> 0.1149425287 | H46: =$B$46+24 -> 40 | I46: 1 | J46: 40 | K46: =MROUND(SUM(J46:J47),10) -> 70
B47: 15.04 | C47: нс(4) | D47: - | E47: 8.9 | F47: =E47 -> 8.9 | G47: =1/14.2 -> 0.07042253521 | H47: =$B$46+24 -> 40 | I47: 1 | J47: 25.07042254
A48: Итого по цокольному этажу: | J48: =SUM(K2:K47) -> 2480
A50: 101 Гараж | B50: 5 | C50: нс | D50: с | E50: 6*2,95 | F50: =6*2.95 -> 17.7 | G50: =1/3.5 -> 0.2857142857 | H50: =$B$50+24 -> 29 | I50: 1.15 | J50: =G50*F50*H50*I50 -> 168.6557143 | K50: =MROUND(SUM(J50:J57),10) -> 1450
B51: 44.24 | C51: нс | D51: з | E51: 8,7*2,95 | F51: =8.7*2.95 -> 25.665 | G51: =1/3.5 -> 0.2857142857 | H51: =$B$50+24 -> 29 | I51: 1.15 | J51: =G51*F51*H51*I51 -> 244.5507857
C52: нс | D52: ю | E52: 6*2,95-(3,6*2,15) | F52: =6*2.95-(3.6*2.15) -> 9.96 | G52: 0.2857142857 | H52: 29 | I52: 1.05 | J52: 86.652
C53: ворота | D53: ю | E53: 3,6*2,15 | F53: =3.6*2.15 -> 7.74 | G53: =1/1 -> 1 | H53: 29 | I53: 1.05 | J53: 235.683
C54: вс | D54: в | E54: 8,7*2,95 | F54: =8.7*2.95 -> 25.665 | G54: =1/3.5 -> 0.2857142857 | H54: =$B$50-20 -> -15 | I54: 1 | J54: -109.9928571
C55: пл(1) | D55: - | E55: 30.3 | F55: =E55 -> 30.3 | G55: 0.37 | H55: 29 | I55: 1 | J55: 325.119
C56: пл(2) | D56: - | E56: 14 | F56: =E56 -> 14 | G56: 0.37 | H56: 29 | I56: 1 | J56: =G56*F56*H56*I56 -> 150.22
C57: пт | D57: - | E57: 44.24 | F57: =E57 -> 44.24 | G57: =1/3.34 -> 0.2994011976 | H57: =($B$50+24)*0.9 -> 26.1 | I57: 1 | J57: 345.7077844
A58: 102 Столовая | B58: 20 | C58: нс | D58: с | E58: 4,38*3,3-2*(1,3*1,5) | F58: =4.38*3.3-2*(1.3*1.5) -> 10.554 | G58: =1/3.5 -> 0.2857142857 | H58: =$B$58+24 -> 44 | I58: 1.1 | J58: =I58*H58*G58*F58 -> 145.9467429 | K58: =MROUND(SUM(J58:J60),10) -> 510
B59: 16.15 | C59: окно | D59: с | E59: 2(1,3*1,5) | F59: =1.3*1.5*2 -> 3.9 | G59: =1/0.6 -> 1.666666667 | H59: =$B$58+24 -> 44 | I59: 1.1 | J59: 314.6
C60: вс | D60: - | E60: 4,05*2,95 | F60: =4.05*2.95 -> 11.9475 | G60: =1/3.5 -> 0.2857142857 | H60: =$B$58-5 -> 15 | I60: 1 | J60: 51.20357143
A61: 103 Гостинная | B61: 20 | C61: вс | D61: - | E61: 4,05*2,95 | F61: =4.05*2.95 -> 11.9475 | G61: =1/3.5 -> 0.2857142857 | H61: =$B$58-5 -> 15 | I61: 1 | J61: 51.20357143 | K61: =MROUND(SUM(J61:J64),10) -> 610
B62: 23.89 | C62: нс | D62: з | E62: 2,3*3,3 | F62: =2.3*3.3 -> 7.59 | G62: =1/3.5 -> 0.2857142857 | H62: =$B$58+24 -> 44 | I62: 1.1 | J62: =I62*H62*G62*F62 -> 104.9588571
C63: нс | D63: ю | E63: 4,65*3,3-2*(1,3*1,5) | F63: =4.65*3.3-2*(1.3*1.5) -> 11.445 | G63: 0.2857142857 | H63: 44 | I63: 1.05 | J63: 151.074
C64: окно | D64: ю | E64: 2(1,3*1,5) | F64: =2*(1.3*1.5) -> 3.9 | G64: =1/0.6 -> 1.666666667 | H64: 44 | I64: 1.05 | J64: 300.3
A65: 104 Кухня | B65: 18 | C65: нс | D65: в | E65: 2,8*3,3-(1,51*1,5) | F65: =1.5*1.5 -> 2.25 | G65: 1.67 | H65: =$B$65+24 -> 42 | I65: 1.15 | J65: 181.48725 | K65: =MROUND(SUM(J65:J70),10) -> 1220
B66: 23.09 | C66: окно | D66: в | E66: 1,51*1,5 | F66: =1.51*1.5 -> 2.265 | G66: =1/0.6 -> 1.666666667 | H66: =$B$65+24 -> 42 | I66: 1.15 | J66: 182.3325
C67: нс | D67: с | E67: 4,8*3,3-2*(0,8*1,5)-1,51*1,5 | F67: =4.8*3.3-2*(0.8*1.5)-1.51*1.5 -> 11.175 | G67: =1/3.5 -> 0.2857142857 | H67: 42 | I67: 1.15 | J67: 154.215
C68: окно | D68: с | E68: 2*(0,8*1,5)+1,51*1,5 | F68: =2*(0.8*1.5)+1.51*1.5 -> 4.665 | G68: =1/0.6 -> 1.666666667 | H68: 42 | I68: 1.15 | J68: 375.5325
C69: нс | D69: з | E69: 2,8*3,3-(1,51*2,1) | F69: =2.8*3.3-(1.51*2.1) -> 6.069 | G69: =1/3.5 -> 0.2857142857 | H69: 42 | I69: 1.1 | J69: 80.1108
C70: дверь | D70: з | E70: 1,51*2,1 | F70: =1.51*2.1 -> 3.171 | G70: =1/0.6 -> 1.666666667 | H70: 42 | I70: 1.1 | J70: 244.167
A71: 105 Кабинет | B71: 20 | C71: нс | D71: с | E71: 2,44*3,3 | F71: =2.44*3.3 -> 8.052 | G71: =1/3.5 -> 0.2857142857 | H71: =$B$71+24 -> 44 | I71: 1.15 | J71: 116.4089143 | K71: =MROUND(SUM(J71:J73),10) -> 510
B72: 8.79 | C72: нс | D72: з | E72: 4,65*3,3 | F72: =4.65*3.3 -> 15.345 | G72: =1/3.5 -> 0.2857142857 | H72: =$B$71+24 -> 44 | I72: 1.1 | J72: 212.1994286
C73: окно | D73: з | E73: 1,51*1,5 | F73: =1.51*1.5 -> 2.265 | G73: =1/0.6 -> 1.666666667 | H73: 44 | I73: 1.1 | J73: 182.71
A74: 106 Холл | B74: 16 | C74: нс | D74: в | E74: 2,04*3,3-(1,31*1,5) | F74: =2.04*3.3-(1.31*1.5) -> 4.767 | G74: =1/3.5 -> 0.2857142857 | H74: =$B$74+24 -> 40 | I74: 1.1 | J74: 59.928 | K74: =MROUND(SUM(J74:J77),10) -> 400
B75: 22.05 | C75: окно | D75: в | E75: 1,31*1,5 | F75: =1.31*1.5 -> 1.965 | G75: =1/0.6 -> 1.666666667 | H75: =$B$74+24 -> 40 | I75: 1.1 | J75: 144.1
C76: нс | D76: ю | E76: 3,46*3,3-(1,1*2,1) | F76: =3.46*3.3-(1.1*2.1) -> 9.108 | G76: =1/3.5 -> 0.2857142857 | H76: 40 | I76: 1 | J76: 104.0914286
C77: дверь | D77: ю | E77: 1,1*2,1 | F77: =1.1*2.1 -> 2.31 | G77: =1/1 -> 1 | H77: 40 | I77: 1 | J77: 92.4
A78: 107 Уборная | B78: 18 | C78: окно | D78: в | E78: 1,82*3,3 | F78: =1.82*3.3 -> 6.006 | G78: =1/3.5 -> 0.2857142857 | H78: =$B$78+24 -> 42 | I78: 1.1 | J78: 79.2792 | K78: =MROUND(SUM(J78:J78),10) -> 80
B79: 3.16
A80: 108 Гардероб | B80: 16 | C80: нс | D80: в | E80: 2,29*3,3 | F80: =2.29*3.3 -> 7.557 | G80: =1/3.5 -> 0.2857142857 | H80: 42 | I80: 1.15 | J80: 104.2866 | K80: =MROUND(SUM(J80:J81),10) -> 220
B81: 3.7 | C81: нс | D81: ю | E81: 2,55*3,3 | F81: =2.55*3.3 -> 8.415 | G81: =1/3.5 -> 0.2857142857 | H81: 42 | I81: 1.15 | J81: 116.127
A82: Итого по 1 этажу: | J82: =SUM(K50:K81) -> 5000
A84: 201 Спальня | B84: 20 | C84: нс | D84: з | E84: 6*3,3-(0,81*2,1) | F84: =6*3.3-(0.81*2.1) -> 18.099 | G84: =1/3.5 -> 0.2857142857 | H84: =$B$84+24 -> 44 | I84: 1.15 | J84: =I84*H84*G84*F84 -> 261.6598286 | K84: =MROUND(SUM(J84:J87),10) -> 1100
B85: 22.46 | C85: дверь | D85: з | E85: 2,3*3,3 | F85: =2.3*3.3 -> 7.59 | G85: =1/1 -> 1 | H85: =$B$84+24 -> 44 | I85: 1.15 | J85: 384.054
C86: нс | D86: ю | E86: 4,65*3,3-2*(1,3*1,5) | F86: =4.65*3.3-2*(1.3*1.5) -> 11.445 | G86: =1/3.5 -> 0.2857142857 | H86: 44 | I86: 1.05 | J86: 151.074
C87: окно | D87: ю | E87: 2(1,3*1,5) | F87: =2*(1.3*1.5) -> 3.9 | G87: =1/0.6 -> 1.666666667 | H87: 44 | I87: 1.05 | J87: =I87*H87*G87*F87 -> 300.3
C88: пт | D88: - | E88: =B85 -> 22.46 | F88: =B85 -> 22.46 | G88: =1/6 -> 0.1666666667 | H88: 44 | I88: 1 | J88: =I88*H88*G88*F88 -> 164.7066667
A89: 202 Детская | B89: 20 | C89: нс | D89: с | E89: 4,38*3,3-2*(1,3*1,5) | F89: =4.38*3.3-2*(1.3*1.5) -> 10.554 | G89: =1/3.5 -> 0.2857142857 | H89: =$B$89+24 -> 44 | I89: 1.15 | J89: 152.5806857 | K89: =MROUND(SUM(J89:J91),10) -> 710
B90: 17.58 | C90: окно | D90: с | E90: 2(1,3*1,5) | F90: =1.3*1.5*2 -> 3.9 | G90: =1/0.6 -> 1.666666667 | H90: =$B$89+24 -> 44 | I90: 1.15 | J90: 328.9
C91: нс | D91: з | E91: 4,8*3,3 | F91: =4.8*3.3 -> 15.84 | G91: =1/3.5 -> 0.2857142857 | H91: =$B$89+24 -> 44 | I91: 1.15 | J91: =I91*H91*G91*F91 -> 229.0011429
C92: пт | D92: - | E92: =B90 -> 17.58 | F92: =E92 -> 17.58 | G92: =1/6 -> 0.1666666667 | H92: =$B$89+24 -> 44 | I92: 1 | J92: =I92*H92*G92*F92 -> 128.92
A93: 203 Детская | B93: 20 | C93: нс | D93: в | E93: 3,05*3,3 | F93: =3.05*3.3 -> 10.065 | G93: =1/3.5 -> 0.2857142857 | H93: =$B$93+24 -> 44 | I93: 1.15 | J93: 145.5111429 | K93: =MROUND(SUM(J93:J100),10) -> 1680
B94: 24.64 | C94: нс | D94: в | E94: 2,64*3,3 | F94: =2.64*3.3 -> 8.712 | G94: =1/3.5 -> 0.2857142857 | H94: =$B$93+24 -> 44 | I94: 1.15 | J94: 125.9506286
C95: нс | D95: в | E95: 2,8*3,3-(1,51*1,5) | F95: =1.5*1.5 -> 2.25 | G95: 2.67 | H95: 44 | I95: 1.15 | J95: 303.9795
C96: окно | D96: в | E96: 1,51*1,5 | F96: =1.51*1.5 -> 2.265 | G96: =1/0.6 -> 1.666666667 | H96: 44 | I96: 1.15 | J96: 191.015
C97: нс | D97: с | E97: 4,8*3,3-2*(0,8*1,5)-1,51*1,5 | F97: =4.8*3.3-2*(0.8*1.5)-1.51*1.5 -> 11.175 | G97: =1/3.5 -> 0.2857142857 | H97: 44 | I97: 1.15 | J97: 161.5585714
C98: окно | D98: с | E98: 2*(0,8*1,5)+1,51*1,5 | F98: =2*(0.8*1.5)+1.51*1.5 -> 4.665 | G98: =1/0.6 -> 1.666666667 | H98: 44 | I98: 1.15 | J98: 393.415
C99: нс | D99: з | E99: 2,8*3,3-(1,51*2,1) | F99: =2.8*3.3-(1.51*2.1) -> 6.069 | G99: =1/3.5 -> 0.2857142857 | H99: 44 | I99: 1.15 | J99: 87.7404
C100: дверь | D100: з | E100: 1,51*2,1 | F100: =1.51*2.1 -> 3.171 | G100: =1/0.6 -> 1.666666667 | H100: 44 | I100: 1.15 | J100: =I100*H100*G100*F100 -> 267.421
C101: пт | D101: - | E101: =B94 -> 24.64 | F101: =E101 -> 24.64 | G101: =1/6 -> 0.1666666667 | H101: 44 | I101: 1 | J101: =I101*H101*G101*F101 -> 180.6933333
A102: 204 С/у | B102: 18 | C102: нс | D102: в | E102: 3,64*3,3 | F102: =3.64*3.3 -> 12.012 | G102: =1/3.5 -> 0.2857142857 | H102: =$B$102+24 -> 42 | I102: 1.1 | J102: =I102*H102*G102*F102 -> 158.5584 | K102: =MROUND(SUM(J102:J102),10) -> 160
B103: 6.25 | C103: пт | D103: - | E103: =B103 -> 6.25 | F103: =E103 -> 6.25 | G103: =1/6 -> 0.1666666667 | H103: =$B$102+24 -> 42 | I103: 1 | J103: 43.75
A104: 205 С/у | B104: 25 | C104: нс | D104: в | E104: 4,11*3,3-0,93 | F104: =4.11*3.3-0.93 -> 12.633 | G104: =1/3.5 -> 0.2857142857 | H104: =$B$104+24 -> 49 | I104: 1.15 | J104: 203.3913 | K104: =MROUND(SUM(J104:J106),10) -> 470
B105: 9.23 | C105: окно | D105: в | E105: 0.93 | F105: 0.93 | G105: =1/0.6 -> 1.666666667 | H105: =$B$104+24 -> 49 | I105: 1.15 | J105: 87.3425
C106: нс | D106: ю | E106: 3,67*3,3 | F106: =3.67*3.3 -> 12.111 | G106: =1/3.5 -> 0.2857142857 | H106: 49 | I106: 1.05 | J106: =I106*H106*G106*F106 -> 178.0317
C107: пт | E107: =B105 -> 9.23 | F107: =E107 -> 9.23 | G107: =1/6 -> 0.1666666667 | H107: 49 | I107: 1 | J107: =I107*H107*G107*F107 -> 75.37833333
A108: 206 Холл | B108: 16 | C108: нс | D108: ю | E108: 2,34*3,3-(1,31*1,5) | F108: =1.5*1.5 -> 2.25 | G108: =1/3.5 -> 0.2857142857 | H108: =$B$108+24 -> 40 | I108: 1 | J108: 25.71428571 | K108: =MROUND(SUM(J108:J110),10) -> 590
B109: 16.22 | C109: окно | D109: ю | E109: 1,31*1,5 | F109: =2.6*3.52-2.25 -> 6.902 | G109: =1/0.6 -> 1.666666667 | H109: =$B$108+24 -> 40 | I109: 1 | J109: 460.1333333
C110: пт | D110: - | E110: =B109 -> 16.22 | F110: =E110 -> 16.22 | G110: =1/6 -> 0.1666666667 | H110: 40 | I110: 1 | J110: 108.1333333
A111: Итого по 2 этажу: | J111: =SUM(K84:K110) -> 4710
A113: Итого по всему зданию: | J113: =J48+J82+J111 -> 12190

Sheet Суммарные
A1: Номерпомещения | B1: Номер, назначение помещения | C1: Q, кВт,основные теплопотери | D1: А,кв. м, площадь помещения | E1: V, куб.м, объем помещения | F1: Lп, расход приточного воздуха | G1: tр, температура в помещении | H1: с, удельная теплоемкость воздуха | I1: ρ, плотность воздуха в помещении | J1: ti, наружная температура по параметру Б | K1: k, коэффициент учета влияния встречного теплового потока в конструкциях | L1: Qi, теплопотери на нагрев инфильтрующегося воздуха | M1: ΣQ,кВт, суммарные теплопотери
A2: 001 | B2: Тренажерный зал | C2: =Основные!K2 -> 900 | D2: =Основные!B3 -> 39.58 | E2: =D2*3 -> 118.74 | F2: 80 | G2: 18 | H2: 1.005 | I2: =353/(G2+273) -> 1.213058419 | J2: -24 | K2: 1 | L2: =MROUND(0.28*F2*I2*H2*(G2-J2)*K2,10) -> 1150 | M2: =C2+L2 -> 2050
A3: 002 | B3: Постирочная | C3: =Основные!K13 -> 200 | D3: =Основные!B14 -> 3.61 | E3: =D3*3 -> 10.83 | F3: 25 | G3: 15 | H3: 1.005 | I3: =353/(G3+273) -> 1.225694444 | J3: -24 | K3: 1 | L3: =MROUND(0.28*F3*I3*H3*(G3-J3)*K3,10) -> 340 | M3: =C3+L3 -> 540
A4: 003 | B4: Душевая | C4: =Основные!K17 -> 300 | D4: =Основные!B18 -> 4.28 | E4: 12.84 | F4: =5*E4 -> 64.2 | G4: 25 | H4: 1.005 | I4: 1.184563758 | J4: -24 | K4: 1 | L4: 1050 | M4: 1350
A5: 004 | B5: Уборная | C5: =Основные!K23 -> 100 | D5: =Основные!B24 -> 2.34 | E5: 7.02 | F5: 25 | G5: 18 | H5: 1.005 | I5: 1.213058419 | J5: -24 | K5: 1 | L5: 360 | M5: 460
A6: 005 | B6: Топочная | C6: =Основные!K27 -> 290 | D6: =Основные!B28 -> 4.78 | E6: 14.34 | F6: 110 | G6: 16 | H6: 1.005 | I6: 1.221453287 | J6: -24 | K6: 1 | L6: 1510 | M6: 1800
A7: 006 | B7: Кладовая | C7: =Основные!K34 -> 340 | D7: =Основные!B35 -> 7.74 | E7: 23.22 | F7: 25 | G7: 16 | H7: 1.005 | I7: 1.221453287 | J7: -24 | K7: 1 | L7: 340 | M7: 680
A8: 007 | B8: Кладовая | C8: =Основные!K41 -> 280 | D8: =Основные!B42 -> 10.47 | E8: 31.41 | F8: 25 | G8: 16 | H8: 1.005 | I8: 1.221453287 | J8: -24 | K8: 1 | L8: 340 | M8: 620
A9: 008 | B9: Холл | C9: =Основные!K46 -> 70 | D9: =Основные!B47 -> 15.04 | E9: 45.12 | F9: 0 | G9: 16 | H9: 1.005 | I9: 1.221453287 | J9: -24 | K9: 1 | L9: 0 | M9: 70
A10: Σ | C10: =SUM(C2:C9) -> 2480 | M10: =SUM(M2:M9) -> 7570
A11: 101 | B11: Гараж | C11: =Основные!K50 -> 1450 | D11: =Основные!B51 -> 44.24 | E11: 132.72 | F11: 360 | G11: 5 | H11: 1.005 | I11: 1.269784173 | J11: -24 | K11: 1 | L11: 3730 | M11: 5180
A12: 102 | B12: Столовая | C12: =Основные!K58 -> 510 | D12: =Основные!B59 -> 16.15 | E12: 48.45 | F12: =MROUND(C12/3,10) -> 170 | G12: 20 | H12: 1.005 | I12: 1.204778157 | J12: -24 | K12: 1 | L12: 2540 | M12: 3050
A13: 103 | B13: Гостинная | C13: =Основные!K61 -> 610 | D13: =Основные!B62 -> 23.89 | E13: 71.67 | F13: =MROUND(C13/3,10) -> 200 | G13: 20 | H13: 1.005 | I13: 1.204778157 | J13: -24 | K13: 1 | L13: 2980 | M13: 3590
A14: 104 | B14: Кухня | C14: =Основные!K65 -> 1220 | D14: =Основные!B66 -> 23.09 | E14: 69.27 | F14: 90 | G14: 18 | H14: 1.005 | I14: 1.213058419 | J14: -24 | K14: 1 | L14: 1290 | M14: 2510
A15: 105 | B15: Кабинет | C15: =Основные!K71 -> 510 | D15: =Основные!B72 -> 8.79 | E15: 26.37 | F15: =MROUND(C15/3,10) -> 170 | G15: 20 | H15: 1.005 | I15: 1.204778157 | J15: -24 | K15: 1 | L15: 2540 | M15: 3050
A16: 106 | B16: Холл | C16: =Основные!K74 -> 400 | D16: =Основные!B75 -> 22.05 | E16: 66.15 | F16: 0 | G16: 16 | H16: 1.005 | I16: 1.221453287 | J16: -24 | K16: 1 | L16: 0 | M16: 400
A17: 107 | B17: Уборная | C17: =Основные!K78 -> 80 | D17: =Основные!B79 -> 3.16 | E17: 9.48 | F17: 25 | G17: 16 | H17: 1.005 | I17: 1.221453287 | J17: -24 | K17: 1 | L17: 340 | M17: 420
A18: 108 | B18: Гардероб | C18: =Основные!K80 -> 220 | D18: =Основные!B81 -> 3.7 | E18: 11.1 | F18: 0 | G18: 16 | H18: 1.005 | I18: 1.221453287 | J18: -24 | K18: 1 | L18: 0 | M18: 220
A19: Σ | C19: =SUM(C11:C18) -> 5000 | M19: =SUM(M11:M18) -> 18420
A20: 201 | B20: Спальня | C20: =Основные!K84 -> 1100 | D20: =Основные!B85 -> 22.46 | E20: 67.38 | F20: =MROUND(C20/3,10) -> 370 | G20: 20 | H20: 1.005 | I20: 1.204778157 | J20: -24 | K20: 1 | L20: 5520 | M20: 6620
A21: 202 | B21: Детская | C21: =Основные!K89 -> 710 | D21: =Основные!B90 -> 17.58 | E21: 52.74 | F21: =MROUND(C21/3,10) -> 240 | G21: 20 | H21: 1.005 | I21: 1.204778157 | J21: -24 | K21: 1 | L21: 3580 | M21: 4290
A22: 203 | B22: Детская | C22: =Основные!K93 -> 1680 | D22: =Основные!B94 -> 24.64 | E22: 73.92 | F22: =MROUND(C22/3,10) -> 560 | G22: 20 | H22: 1.005 | I22: 1.204778157 | J22: -24 | K22: 1 | L22: 8350 | M22: 10030
A23: 204 | B23: С/у | C23: =Основные!K102 -> 160 | D23: =Основные!B103 -> 6.25 | E23: 18.75 | F23: 50 | G23: 18 | H23: 1.005 | I23: 1.213058419 | J23: -24 | K23: 1 | L23: 720 | M23: 880
A24: 205 | B24: С/у | C24: =Основные!K104 -> 470 | D24: =Основные!B105 -> 9.23 | E24: 27.69 | F24: 50 | G24: 25 | H24: 1.005 | I24: 1.184563758 | J24: -24 | K24: 1 | L24: 820 | M24: 1290
A25: 206 | B25: Холл | C25: =Основные!K108 -> 590 | D25: =Основные!B109 -> 16.22 | E25: 48.66 | F25: 0 | G25: 16 | H25: 1.005 | I25: 1.221453287 | J25: -24 | K25: 1 | L25: 0 | M25: 590
A26: Σ | C26: =SUM(C20:C25) -> 4710 | M26: =SUM(M20:M25) -> 23700
B27: Σ | C27: =SUM(C26,C19,C10) -> 12190 | L27: Σ | M27: =SUM(M26,M19,M10) -> 49690

Sheet Лист3
